bitfinex-derivatives/quotes_BTCF0:USTF0_20260314
["timestamp","ask_amount","ask_price","bid_price","bid_amount"]
[1773520084931,0.042367,70799.0,70787.0,0.042373]
[1773520085231,0.00156,70798.0,70787.0,0.042373]
[1773520085620,0.00156,70798.0,70787.0,0.05364786]
[1773520091725,0.043927,70798.0,70786.0,0.01131488]
[1773520092831,0.043927,70798.0,70786.0,0.05368888]
[1773520093733,0.042367,70798.0,70786.0,0.05368888]
[1773520093932,0.00156,70797.0,70786.0,0.04241402]
[1773520097629,0.042367,70798.0,70786.0,0.04241402]
[1773520097834,0.00156,70797.0,70786.0,0.04241402]
[1773520100930,0.042367,70798.0,70786.0,0.04241402]
[1773520101129,0.00156,70796.0,70786.0,0.04241402]
[1773520101330,0.00156,70796.0,70786.0,0.0536167]
[1773520102036,0.042367,70798.0,70787.0,0.01120268]
[1773520102238,0.00156,70795.0,70787.0,0.01120268]
[1773520105031,0.042367,70798.0,70787.0,0.01120268]
[1773520105231,0.00156,70797.0,70787.0,0.01120268]
[1773520121152,0.043928,70797.0,70787.0,0.01120268]
[1773520128662,0.042368,70797.0,70787.0,0.01120268]
[1773520128866,0.00156,70796.0,70787.0,0.01120268]
[1773520141368,0.042373,70789.0,70775.0,0.042381]
[1773520141574,0.00156,70788.0,70775.0,0.042381]
[1773520142072,0.00156,70788.0,70776.0,0.04238]
[1773520145877,0.043933,70788.0,70774.0,0.042381]
[1773520146078,0.043933,70788.0,70775.0,0.042381]
[1773520146279,0.042376,70785.0,70773.0,0.0545398]
[1773520146474,0.042376,70785.0,70773.0,0.042382]
[1773520170199,0.042378,70781.0,70770.0,0.01281]
[1773520170397,0.043938,70780.0,70770.0,0.01125]
[1773520170696,0.00156,70779.0,70770.0,0.01125]
[1773520180401,0.043939,70779.0,70770.0,0.01125]
[1773520180606,0.00156,70779.0,70766.0,0.042386]
[1773520181609,0.00156,70779.0,70766.0,0.052076]
[1773520182012,0.04238,70777.0,70766.0,0.052076]
[1773520183711,0.04238,70777.0,70766.0,0.06193446]
[1773520184010,0.04238,70777.0,70767.0,0.00985846]
[1773520193511,0.04238,70777.0,70766.0,0.052076]
[1773520205020,0.042375,70786.0,70768.0,0.00906476]
[1773520205216,0.00156,70786.0,70768.0,0.00906476]
[1773520205926,0.01125,70787.0,70767.0,0.07374267]
[1773520206225,0.01125,70787.0,70769.0,0.00906476]
[1773520206921,0.01125,70787.0,70770.0,0.00156]
[1773520207121,0.01125,70787.0,70771.0,0.00906476]
[1773520207838,0.01125,70787.0,70770.0,0.00156]
[1773520208128,0.01125,70787.0,70771.0,0.00906476]
[1773520209029,0.01125,70787.0,70776.0,0.04238]
[1773520210321,0.043932,70790.0,70777.0,0.04238]
[1773520211514,0.042372,70790.0,70777.0,0.04238]
[1773520211814,0.043932,70790.0,70777.0,0.04238]
[1773520212023,0.042372,70790.0,70777.0,0.04238]
[1773520212217,0.043932,70790.0,70777.0,0.04238]
[1773520222534,0.009405,70792.0,70776.0,0.00156]
[1773520222734,0.00156,70791.0,70776.0,0.00156]
[1773520223929,0.042374,70788.0,70776.0,0.00156]
[1773520226435,0.009405,70786.0,70762.0,0.16922351]
[1773520226621,0.009405,70780.0,70762.0,0.00156]
[1773520226827,0.010965,70780.0,70763.0,0.00156]
[1773520227028,0.010965,70780.0,70764.0,0.00156]
[1773520227227,0.010965,70780.0,70773.0,0.01125]
[1773520228026,0.01125,70775.0,70773.0,0.01125]
[1773520228225,0.01125,70775.0,70767.0,0.042385]
[1773520228834,0.010965,70780.0,70767.0,0.042385]
[1773520230736,0.01125,70777.0,70767.0,0.042385]
[1773520230930,0.01125,70777.0,70766.0,0.00156]
[1773520231131,0.01125,70777.0,70766.0,0.0111436]
[1773520232135,0.01125,70777.0,70770.0,0.042384]
[1773520235734,0.01125,70777.0,70772.0,0.042383]
[1773520242843,0.01125,70777.0,70768.0,0.042385]
[1773520243039,0.01125,70777.0,70768.0,0.043945]
[1773520243345,0.01125,70777.0,70768.0,0.042385]
[1773520243549,0.01125,70777.0,70768.0,0.043945]
[1773520248642,0.01125,70777.0,70768.0,0.042385]
[1773520274078,0.01125,70777.0,70770.0,0.042384]
[1773520275376,0.01125,70777.0,70768.0,0.042385]
[1773520276975,0.01125,70777.0,70761.0,0.17843519]
[1773520277175,0.01125,70777.0,70762.0,0.043948]
[1773520277176,0.042381,70775.0,70762.0,0.043948]
[1773520278378,0.042381,70775.0,70763.0,0.042388]
[1773520279180,0.00156,70776.0,70764.0,0.042387]
[1773520287180,0.05363,70777.0,70764.0,0.042387]
[1773520287384,0.05519,70777.0,70765.0,0.00986798]
[1773520293791,0.05519,70777.0,70764.0,0.042387]
[1773520296895,0.042381,70776.0,70764.0,0.042387]
[1773520317911,0.042383,70773.0,70760.0,0.21172415]
[1773520318117,0.042381,70775.0,70763.0,0.042388]
[1773520322015,0.043381,70775.0,70763.0,0.042388]
[1773520323317,0.043381,70775.0,70761.0,0.042389]
[1773520324217,0.042382,70774.0,70761.0,0.042389]
[1773520325916,0.043382,70774.0,70761.0,0.042389]
[1773520326818,0.042383,70773.0,70761.0,0.042389]
[1773520328216,0.043383,70773.0,70761.0,0.042389]
[1773520332021,0.00889347,70777.0,70762.0,0.00945532]
[1773520332216,0.00889347,70777.0,70767.0,0.042385]
[1773520332420,0.00889347,70777.0,70767.0,0.043945]
[1773520333622,0.00889347,70777.0,70768.0,0.042385]
[1773520334422,0.00989347,70777.0,70768.0,0.042385]
[1773520335124,0.00889347,70777.0,70768.0,0.042385]
[1773520335323,0.00989347,70777.0,70768.0,0.042385]
[1773520338929,0.00989347,70777.0,70767.0,0.00156]
[1773520338930,0.00989347,70777.0,70769.0,0.042384]
[1773520349350,0.043937,70782.0,70769.0,0.042384]
[1773520350652,0.044937,70782.0,70769.0,0.042384]
[1773520350854,0.044937,70782.0,70769.0,0.044734]
[1773520351642,0.044937,70782.0,70770.0,0.042384]
[1773520351848,0.043377,70782.0,70770.0,0.042384]
[1773520352358,0.044937,70782.0,70770.0,0.042384]
[1773520352656,0.043377,70782.0,70770.0,0.042384]
[1773520352955,0.044937,70782.0,70770.0,0.042384]
[1773520353157,0.043377,70782.0,70770.0,0.042384]
[1773520353451,0.044937,70782.0,70770.0,0.042384]
[1773520354354,0.043377,70782.0,70770.0,0.042384]
[1773520355156,0.044937,70782.0,70770.0,0.042384]
[1773520355451,0.043377,70782.0,70770.0,0.042384]
[1773520355657,0.044937,70782.0,70770.0,0.042384]
[1773520355951,0.043377,70782.0,70770.0,0.042384]
[1773520356145,0.044937,70782.0,70770.0,0.042384]
[1773520357751,0.043377,70782.0,70770.0,0.042384]
[1773520357950,0.044937,70782.0,70770.0,0.042384]
[1773520358255,0.043377,70782.0,70770.0,0.042384]
[1773520358457,0.044937,70782.0,70770.0,0.042384]
[1773520360353,0.044937,70782.0,70775.0,0.01125]
[1773520360852,0.01125,70777.0,70775.0,0.01125]
[1773520362356,0.01225,70777.0,70775.0,0.01125]
[1773520362555,0.043937,70782.0,70775.0,0.01125]
[1773520362755,0.043937,70782.0,70770.0,0.042384]
[1773520363961,0.043937,70782.0,70770.0,0.053634]
[1773520364762,0.044937,70782.0,70770.0,0.053634]
[1773520365265,0.043937,70782.0,70770.0,0.053634]
[1773520365458,0.044937,70782.0,70770.0,0.053634]
[1773520365964,0.001,70782.0,70771.0,0.00981167]
[1773520366164,0.00156,70789.0,70777.0,0.04238]
[1773520366860,0.00156,70788.0,70777.0,0.04238]
[1773520367467,0.042372,70790.0,70777.0,0.04238]
[1773520367668,0.00156,70789.0,70777.0,0.04238]
[1773520367867,0.001,70782.0,70777.0,0.04238]
[1773520368058,0.00156,70787.0,70777.0,0.04238]
[1773520368464,0.042373,70789.0,70777.0,0.04238]
[1773520368666,0.00156,70788.0,70777.0,0.04238]
[1773520368861,0.001,70790.0,70773.0,0.01145493]
[1773520369264,0.00156,70789.0,70773.0,0.01145493]
[1773520369564,0.001,70787.0,70773.0,0.01145493]
[1773520371070,0.001,70787.0,70778.0,0.042379]
[1773520371569,0.001,70790.0,70778.0,0.042379]
[1773520372166,0.055182,70791.0,70778.0,0.042379]
[1773520372368,0.001,70787.0,70778.0,0.042379]
[1773520373574,0.01125,70791.0,70782.0,0.042376]
[1773520374073,0.001,70790.0,70782.0,0.042376]
[1773520374469,0.001,70790.0,70779.0,0.01137032]
[1773520374676,0.001,70791.0,70780.0,0.00981032]
[1773520374875,0.001,70791.0,70784.0,0.042375]
[1773520375375,0.03736094,70793.0,70784.0,0.042375]
[1773520375575,0.001,70790.0,70784.0,0.042375]
[1773520377174,0.001,70791.0,70784.0,0.042375]
[1773520377977,0.03736094,70793.0,70784.0,0.042375]
[1773520378775,0.001,70791.0,70784.0,0.042375]
[1773520380380,0.03836094,70793.0,70784.0,0.042375]
[1773520381270,0.03736094,70793.0,70784.0,0.042375]
[1773520381474,0.001,70791.0,70784.0,0.042375]
[1773520383182,0.03736094,70793.0,70784.0,0.042375]
[1773520383376,0.03836094,70793.0,70784.0,0.042375]
[1773520383973,0.03736094,70793.0,70782.0,0.042376]
[1773520384168,0.001,70791.0,70782.0,0.042376]
[1773520384777,0.03836094,70793.0,70782.0,0.042376]
[1773520386382,0.03736094,70793.0,70782.0,0.042376]
[1773520386572,0.001,70791.0,70782.0,0.042376]
[1773520387178,0.03836094,70793.0,70782.0,0.042376]
[1773520387886,0.03736094,70793.0,70782.0,0.042376]
[1773520388081,0.001,70791.0,70782.0,0.042376]
[1773520389381,0.03736094,70793.0,70782.0,0.042376]
[1773520389574,0.03836094,70793.0,70782.0,0.042376]
[1773520390079,0.03736094,70793.0,70782.0,0.042376]
[1773520390288,0.001,70791.0,70782.0,0.042376]
[1773520390981,0.03836094,70793.0,70782.0,0.042376]
[1773520392378,0.03736094,70793.0,70782.0,0.042376]
[1773520392579,0.001,70791.0,70782.0,0.042376]
[1773520393181,0.03836094,70793.0,70782.0,0.042376]
[1773520394081,0.001,70791.0,70782.0,0.042376]
[1773520395284,0.03736094,70793.0,70782.0,0.042376]
[1773520395471,0.03836094,70793.0,70782.0,0.042376]
[1773520396085,0.03736094,70793.0,70782.0,0.042376]
[1773520396286,0.001,70791.0,70782.0,0.042376]
[1773520396886,0.03836094,70793.0,70782.0,0.042376]
[1773520397186,0.001,70793.0,70782.0,0.042376]
[1773520398487,0.001,70791.0,70782.0,0.042376]
[1773520399089,0.04237,70794.0,70782.0,0.042376]
[1773520399291,0.001,70793.0,70782.0,0.042376]
[1773520399992,0.001,70791.0,70782.0,0.042376]
[1773520400791,0.043372,70791.0,70779.0,0.042378]
[1773520401491,0.042372,70791.0,70779.0,0.042378]
[1773520402189,0.043372,70791.0,70779.0,0.042378]
[1773520402898,0.042372,70791.0,70779.0,0.042378]
[1773520403087,0.043372,70791.0,70779.0,0.042378]
[1773520408292,0.042372,70791.0,70780.0,0.042378]
[1773520408499,0.043372,70791.0,70780.0,0.042378]
[1773520410199,0.042372,70791.0,70780.0,0.042378]
[1773520410397,0.043372,70791.0,70780.0,0.042378]
[1773520414898,0.043372,70791.0,70775.0,0.00156]
[1773520414899,0.001,70791.0,70775.0,0.00156]
[1773520415803,0.043372,70791.0,70778.0,0.042379]
[1773520416300,0.043372,70791.0,70779.0,0.042378]
[1773520417102,0.042372,70791.0,70779.0,0.042378]
[1773520417302,0.043372,70791.0,70779.0,0.042378]
[1773520424204,0.042378,70781.0,70767.0,0.042385]
[1773520424597,0.042379,70779.0,70767.0,0.042385]
[1773520425005,0.042379,70779.0,70768.0,0.00156]
[1773520425810,0.042379,70779.0,70772.0,0.01125]
[1773520426205,0.043379,70779.0,70772.0,0.01125]
[1773520426411,0.01125,70775.0,70772.0,0.01125]
[1773520450939,0.042381,70776.0,70768.0,0.00156]
[1773520451439,0.042381,70776.0,70764.0,0.042387]
[1773520451738,0.042379,70778.0,70767.0,0.00156]
[1773520451934,0.042379,70778.0,70765.0,0.042387]
[1773520452124,0.042379,70778.0,70767.0,0.00156]
[1773520452330,0.01125,70776.0,70767.0,0.00156]
[1773520474166,0.01125,70776.0,70768.0,0.042385]
[1773520479263,0.01125,70776.0,70767.0,0.00156]
[1773520493276,0.042372,70791.0,70779.0,0.042378]
[1773520493869,0.042372,70791.0,70779.0,0.043938]
[1773520494069,0.042372,70791.0,70784.0,0.01125]
[1773520494265,0.00156,70793.0,70784.0,0.01125]
[1773520494465,0.00976857,70797.0,70784.0,0.01125]
[1773520494466,0.00156,70794.0,70784.0,0.01125]
[1773520494670,0.01067701,70786.0,70784.0,0.01125]
[1773520494870,0.042369,70795.0,70784.0,0.01125]
[1773520495375,0.042369,70795.0,70783.0,0.042376]
[1773520496078,0.001,70791.0,70782.0,0.01125]
[1773520496689,0.001,70795.0,70782.0,0.01125]
[1773520497091,0.001,70795.0,70784.0,0.042375]
[1773520497490,0.04955116,70797.0,70784.0,0.042375]
[1773520497491,0.001,70791.0,70784.0,0.042375]
[1773520497990,0.04799116,70797.0,70785.0,0.042375]
[1773520498198,0.03822259,70797.0,70786.0,0.042374]
[1773520498896,0.001,70795.0,70786.0,0.042374]
[1773520499596,0.03822259,70797.0,70786.0,0.042374]
[1773520499797,0.03922259,70797.0,70786.0,0.042374]
[1773520500398,0.001,70795.0,70786.0,0.042374]
[1773520501394,0.001,70795.0,70786.0,0.04241401]
[1773520502098,0.03922259,70797.0,70786.0,0.04241401]
[1773520502599,0.03922259,70797.0,70786.0,4.001e-05]
[1773520502899,0.08159059,70797.0,70786.0,4.001e-05]
[1773520503090,0.08059059,70797.0,70786.0,4.001e-05]
[1773520503999,0.09035916,70797.0,70786.0,4.001e-05]
[1773520504999,0.05213757,70796.0,70785.0,0.00156]
[1773520505206,0.00976857,70796.0,70785.0,0.00156]
[1773520505502,0.00976857,70796.0,70784.0,0.00156]
[1773520506005,0.05213757,70795.0,70784.0,0.00156]
[1773520506798,0.05213757,70795.0,70782.0,0.053626]
[1773520507003,0.05213757,70795.0,70782.0,0.055186]
[1773520507206,0.042371,70793.0,70782.0,0.01281]
[1773520507406,0.00976857,70793.0,70782.0,0.01281]
[1773520507704,0.00976857,70793.0,70782.0,0.00481]
[1773520508408,0.00976857,70791.0,70765.0,0.1788118]
[1773520508603,0.00976857,70787.0,70775.0,0.038381]
[1773520508808,0.01132857,70787.0,70775.0,0.038381]
[1773520509307,0.01132857,70787.0,70780.0,0.01125]
[1773520509804,0.01125,70782.0,70780.0,0.01125]
[1773520509999,0.00594482,70782.0,70780.0,0.01125]
[1773520510207,0.0006346,70782.0,70780.0,0.01125]
[1773520510409,0.00664975,70787.0,70780.0,0.01125]
[1773520510603,0.00664975,70787.0,70776.0,0.04238]
[1773520511803,0.00664975,70787.0,70778.0,0.01125]
[1773520517716,0.00764975,70787.0,70778.0,0.01125]
[1773520524623,0.00664975,70787.0,70778.0,0.01125]
[1773520525321,0.00156,70787.0,70778.0,0.01125]
[1773520527220,0.042374,70788.0,70778.0,0.01125]
[1773520527424,0.00156,70786.0,70778.0,0.01125]
[1773520530431,0.042374,70788.0,70778.0,0.01125]
[1773520530637,0.00156,70786.0,70778.0,0.01125]
[1773520536742,0.042374,70788.0,70778.0,0.01125]
[1773520536943,0.00156,70787.0,70778.0,0.01125]
[1773520539044,0.00156,70786.0,70778.0,0.01125]
[1773520548545,0.042374,70788.0,70778.0,0.01125]
[1773520548851,0.00156,70787.0,70778.0,0.01125]
[1773520553661,0.042374,70788.0,70778.0,0.01125]
[1773520553858,0.00156,70787.0,70779.0,0.00927703]
[1773520554458,0.042374,70788.0,70779.0,0.00927703]
[1773520554661,0.00156,70787.0,70779.0,0.00927703]
[1773520566270,0.043934,70787.0,70779.0,0.00927703]
[1773520566669,0.043934,70787.0,70778.0,0.01125]
[1773520590086,0.042374,70787.0,70778.0,0.01125]
[1773520590280,0.043934,70787.0,70778.0,0.01125]
[1773520595188,0.042374,70787.0,70778.0,0.01125]
[1773520595389,0.043934,70787.0,70778.0,0.01125]
[1773520601582,0.042374,70787.0,70778.0,0.01125]
[1773520601782,0.043934,70787.0,70778.0,0.01125]
[1773520606294,0.042375,70786.0,70778.0,0.01125]
[1773520637411,0.043935,70786.0,70778.0,0.01125]
[1773520641025,0.042375,70785.0,70778.0,0.01125]
[1773520656638,0.00156,70786.0,70767.0,0.00977163]
[1773520656941,0.00156,70786.0,70760.0,0.07372552]
[1773520656942,0.0092224,70783.0,70768.0,0.00156]
[1773520657138,0.00156,70786.0,70770.0,0.042383]
[1773520657346,0.00156,70786.0,70771.0,0.00156]
[1773520658246,0.00156,70786.0,70777.0,0.01125]
[1773520658943,0.01125,70780.0,70777.0,0.01125]
[1773520663450,0.043935,70786.0,70777.0,0.01125]
[1773520663651,0.043935,70786.0,70774.0,0.042381]
[1773520664248,0.043935,70786.0,70774.0,0.053631]
[1773520665958,0.042375,70786.0,70774.0,0.053631]
[1773520666255,0.043935,70786.0,70774.0,0.053631]
[1773520672158,0.042375,70786.0,70774.0,0.053631]
[1773520672456,0.043935,70786.0,70774.0,0.053631]
[1773520684067,0.01125,70795.0,70778.0,0.042379]
[1773520684365,0.042373,70789.0,70780.0,0.07372552]
[1773520685162,0.042373,70789.0,70778.0,0.00156]
[1773520691161,0.042372,70791.0,70778.0,0.043939]
[1773520696268,0.042372,70791.0,70779.0,0.042378]
[1773520697469,0.042372,70791.0,70780.0,0.07370865]
[1773520698166,0.04237,70793.0,70781.0,0.042377]
[1773520698366,0.053619,70795.0,70783.0,0.042376]
[1773520698968,0.042369,70795.0,70783.0,0.042376]
[1773520708878,0.04237,70794.0,70781.0,0.042377]
[1773520713778,0.04237,70793.0,70781.0,0.042377]
[1773520714680,0.00156,70796.0,70782.0,0.042376]
[1773520714880,0.00156,70796.0,70780.0,0.07370865]
[1773520714881,0.00156,70798.0,70783.0,0.042376]
[1773520715080,0.00156,70798.0,70784.0,0.00156]
[1773520715282,0.00945304,70800.0,70784.0,0.00156]
[1773520715487,0.00156,70799.0,70784.0,0.00156]
[1773520715784,0.00945304,70800.0,70784.0,0.00156]
[1773520715985,0.042369,70796.0,70784.0,0.00156]
[1773520718989,0.042369,70796.0,70785.0,0.00977245]
[1773520719782,0.042369,70796.0,70784.0,0.00156]
[1773520724582,0.042369,70796.0,70784.0,0.043935]
[1773520731799,0.01124,70804.0,70786.0,0.07370865]
[1773520732017,0.01124,70804.0,70785.0,0.00916952]
[1773520732018,0.01124,70804.0,70794.0,0.042369]
[1773520732299,0.043921,70808.0,70795.0,0.042368]
[1773520732504,0.042361,70808.0,70795.0,0.042368]
[1773520732896,0.001,70804.0,70795.0,0.042368]
[1773520733705,0.001,70804.0,70793.0,0.04393]
[1773520733907,0.001,70804.0,70794.0,0.042369]
[1773520734405,0.042363,70806.0,70794.0,0.042369]
[1773520736108,0.042363,70806.0,70793.0,0.00156]
[1773520737106,0.00997036,70813.0,70793.0,0.00156]
[1773520737307,0.00156,70812.0,70794.0,0.042369]
[1773520737607,0.042363,70806.0,70794.0,0.042369]
[1773520743807,0.042361,70808.0,70794.0,0.042369]
[1773520747212,0.043361,70808.0,70794.0,0.042369]
[1773520747818,0.043361,70808.0,70795.0,0.042369]
[1773520748114,0.042361,70808.0,70795.0,0.042369]
[1773520754611,0.042361,70808.0,70796.0,0.042368]
[1773520754811,0.042361,70808.0,70796.0,0.04240801]
[1773520766125,0.042361,70808.0,70797.0,0.042368]
[1773520785251,0.04236,70810.0,70797.0,0.042368]
[1773520789856,0.04236,70810.0,70796.0,0.04240801]
[1773520790357,0.042361,70809.0,70796.0,0.04240801]
[1773520792262,0.042361,70809.0,70797.0,0.042368]
[1773520800776,0.00156,70810.0,70798.0,0.042367]
[1773520800974,0.00156,70810.0,70798.0,0.04240701]
[1773520801874,0.00256,70810.0,70798.0,0.04240701]
[1773520802177,0.04492,70810.0,70798.0,0.04240701]
[1773520804074,0.04392,70810.0,70798.0,0.04240701]
[1773520807668,0.04392,70810.0,70798.0,0.05144638]
[1773520808778,0.00156,70810.0,70800.0,0.042366]
[1773520808977,0.00156,70810.0,70800.0,0.04240601]
[1773520809277,0.00156,70810.0,70801.0,0.042365]
[1773520811577,0.00156,70811.0,70800.0,4.001e-05]
[1773520812382,0.04392,70811.0,70800.0,4.001e-05]
[1773520812578,0.04236,70810.0,70800.0,4.001e-05]
[1773520813082,0.00931498,70809.0,70797.0,0.00156]
[1773520813486,0.00931498,70809.0,70798.0,0.042367]
[1773520814683,0.04236,70810.0,70798.0,0.042367]
[1773520818983,0.00156,70811.0,70796.0,0.00156]
[1773520819286,0.00156,70811.0,70796.0,0.01059937]
[1773520819978,0.00156,70811.0,70799.0,0.042366]
[1773520822188,0.042359,70812.0,70799.0,0.042366]
[1773520822389,0.00156,70811.0,70799.0,0.042366]
[1773520823790,0.00156,70811.0,70800.0,0.00992385]
[1773520827991,0.07367873,70840.0,70801.0,0.07367873]
[1773520828186,0.042339,70846.0,70788.0,0.264716]
[1773520828187,0.042358,70814.0,70802.0,0.00156]
[1773520828495,0.05182685,70816.0,70803.0,0.00156]
[1773520828791,0.18714416,70813.0,70796.0,0.00992385]
[1773520829090,0.22950216,70813.0,70797.0,0.00156]
[1773520829284,0.18714416,70813.0,70802.0,0.042364]
[1773520829996,0.18714416,70813.0,70800.0,0.05228985]
[1773520830696,0.18714416,70813.0,70800.0,0.05384985]
[1773520831486,0.18814416,70813.0,70800.0,0.05384985]
[1773520832287,0.18714416,70813.0,70800.0,0.05384985]
[1773520833998,0.18714416,70813.0,70801.0,0.042365]
[1773520834198,0.18714416,70813.0,70802.0,0.042364]
[1773520834799,0.18714416,70813.0,70800.0,0.12752858]
[1773520837405,0.18714416,70813.0,70800.0,0.12756859]
[1773520838405,0.042358,70814.0,70800.0,0.12756859]
[1773520838705,0.22950316,70813.0,70800.0,0.12756859]
[1773520839909,0.22950316,70813.0,70800.0,0.05388986]
[1773520841108,0.22950316,70813.0,70800.0,0.04396601]
[1773520841507,0.22950316,70813.0,70800.0,0.11764474]
[1773520843402,0.042359,70812.0,70800.0,0.11764474]
[1773520848215,0.042359,70812.0,70801.0,0.042365]
[1773520850616,0.18714416,70811.0,70802.0,0.05248643]
[1773520850813,0.22950216,70814.0,70803.0,0.01012243]
[1773520854018,0.22950216,70814.0,70802.0,0.04240401]
[1773520854219,0.042358,70813.0,70802.0,4.001e-05]
[1773520855718,0.042359,70812.0,70802.0,4.001e-05]
[1773520860923,0.18714416,70811.0,70802.0,4.001e-05]
[1773520866933,0.18714416,70811.0,70803.0,0.042364]
[1773520867135,0.18714416,70811.0,70805.0,0.042362]
[1773520867325,0.042356,70818.0,70805.0,0.04240201]
[1773520867529,0.18714416,70817.0,70805.0,0.04240201]
[1773520868136,0.18714416,70817.0,70806.0,0.00156]
[1773520868338,0.042356,70818.0,70806.0,0.00156]
[1773520868539,0.18714416,70817.0,70806.0,0.00156]
[1773520878132,0.18714416,70817.0,70807.0,0.07364936]
[1773520878338,0.18714416,70817.0,70807.0,4.001e-05]
[1773520879735,0.05280127,70820.0,70807.0,0.04240101]
[1773520879946,0.18714416,70817.0,70807.0,0.04240101]
[1773520880340,0.18714416,70817.0,70809.0,0.04236]
[1773520880540,0.18714416,70817.0,70813.0,0.0020258]
[1773520880741,0.18714416,70817.0,70813.0,0.00206581]
[1773520880938,0.18714416,70817.0,70813.0,4.001e-05]
[1773520881132,0.18714416,70817.0,70807.0,0.07364936]
[1773520881333,0.01124,70823.0,70810.0,0.00928273]
[1773520881541,0.00070591,70839.0,70820.0,0.07364936]
[1773520881846,0.00923924,70845.0,70829.0,0.07364936]
[1773520882045,0.00923924,70845.0,70830.0,0.00156]
[1773520882232,0.00156,70847.0,70830.0,0.00156]
[1773520882233,0.00070591,70844.0,70830.0,0.00156]
[1773520882439,0.000164,70857.0,70835.0,0.00928273]
[1773520882634,0.001,70839.0,70836.0,0.00156]
[1773520882832,0.00395097,70846.0,70837.0,0.00156]
[1773520883039,0.042335,70852.0,70838.0,0.00156]
[1773520883233,0.00070591,70854.0,70840.0,0.07364936]
[1773520883234,0.042334,70854.0,70840.0,0.07364936]
[1773520883439,0.042335,70852.0,70839.0,0.00156]
[1773520884447,0.00923924,70854.0,70839.0,0.00156]
[1773520884839,0.00923924,70852.0,70839.0,0.00156]
[1773520885042,0.00156,70859.0,70840.0,0.00156]
[1773520885043,0.05157624,70849.0,70840.0,0.00156]
[1773520885241,0.00923924,70849.0,70841.0,0.00156]
[1773520885442,0.00923924,70849.0,70842.0,0.00156]
[1773520885642,0.00923924,70849.0,70833.0,0.042346]
[1773520885643,0.00923924,70849.0,70843.0,0.00156]
[1773520885946,0.00994515,70849.0,70843.0,0.00156]
[1773520886554,0.00994515,70849.0,70821.0,0.1688396]
[1773520886555,0.00923924,70837.0,70824.0,0.00156]
[1773520886841,0.00923924,70831.0,70814.0,0.042357]
[1773520887048,0.00923924,70831.0,70815.0,0.00156]
[1773520887244,0.00923924,70829.0,70811.0,0.042359]
[1773520887449,0.00923924,70826.0,70812.0,0.00156]
[1773520889040,0.00923924,70826.0,70812.0,0.00256]
[1773520890441,0.00923924,70826.0,70812.0,0.00156]
[1773520891645,0.04235,70827.0,70812.0,0.043918]
[1773520894553,0.04305591,70828.0,70813.0,0.042358]
[1773520896555,0.04235,70827.0,70813.0,0.042358]
[1773520899651,0.00070591,70826.0,70813.0,0.042358]
[1773520905863,0.00070591,70826.0,70814.0,0.042357]
[1773520908058,0.042351,70825.0,70812.0,0.043919]
[1773520908663,0.042351,70825.0,70813.0,0.00928273]
[1773520911459,0.042351,70825.0,70812.0,0.043919]
[1773520911656,0.01718836,70826.0,70808.0,0.16825143]
[1773520911860,0.042354,70820.0,70809.0,0.00156]
[1773520912252,0.042353,70822.0,70810.0,0.00156]
[1773520914058,0.042353,70822.0,70810.0,0.00256]
[1773520915264,0.042353,70822.0,70811.0,0.16825143]
[1773520915460,0.042352,70824.0,70811.0,0.16825143]
[1773520916264,0.042352,70824.0,70813.0,0.16825143]
[1773520917160,0.042352,70824.0,70814.0,0.16825143]
[1773520919966,0.00070591,70825.0,70814.0,0.16825143]
[1773520920370,0.04305691,70825.0,70814.0,0.16825143]
[1773520921268,0.04305691,70825.0,70813.0,0.21060943]
[1773520922668,0.04305691,70825.0,70813.0,0.16825143]
[1773520923267,0.042352,70824.0,70813.0,0.16825143]
[1773520925069,0.042353,70823.0,70813.0,0.16825143]
[1773520925976,0.042353,70823.0,70812.0,0.16825143]
[1773520926163,0.00070591,70822.0,70812.0,0.16825143]
[1773520926866,0.042353,70823.0,70812.0,0.16825143]
[1773520927070,0.00070591,70822.0,70812.0,0.16825143]
[1773520928172,0.042353,70823.0,70812.0,0.16825143]
[1773520928573,0.042353,70823.0,70812.0,0.16925143]
[1773520930678,0.042353,70823.0,70812.0,0.16825143]
[1773520931378,0.042353,70823.0,70811.0,0.042359]
[1773520931578,0.00070591,70822.0,70811.0,0.042359]
[1773520934279,0.00070591,70822.0,70811.0,0.043359]
[1773520939583,0.00070591,70822.0,70811.0,0.0595975]
[1773520940185,0.00070591,70822.0,70812.0,0.0162385]
[1773520941186,0.00070591,70822.0,70814.0,0.16897741]
[1773520942085,0.042352,70824.0,70814.0,0.16897741]
[1773520942285,0.00070591,70823.0,70814.0,0.16897741]
[1773520942586,0.00070591,70823.0,70814.0,0.16997741]
[1773520943888,0.00070591,70823.0,70814.0,0.16897741]
[1773520945991,0.04305791,70823.0,70814.0,0.16897741]
[1773520951294,0.04305791,70823.0,70813.0,0.16897741]
[1773520955191,0.042353,70822.0,70813.0,0.16897741]
[1773520955403,0.00070591,70823.0,70813.0,0.16897741]
[1773520955695,0.04305791,70823.0,70813.0,0.16897741]
[1773520956788,0.042352,70823.0,70813.0,0.16897741]
[1773520957191,0.042352,70823.0,70814.0,0.00156]
[1773520959295,0.042352,70823.0,70814.0,0.00256]
[1773520959797,0.042352,70823.0,70814.0,0.00156]
[1773520959998,0.042352,70823.0,70814.0,0.00256]
[1773520961599,0.00070591,70822.0,70814.0,0.00256]
[1773520962902,0.00070591,70822.0,70814.0,0.00156]
[1773520963096,0.00070591,70822.0,70814.0,0.00256]
[1773520969611,0.00156,70836.0,70814.0,0.01762579]
[1773520969907,0.02601908,70838.0,70820.0,0.07363792]
[1773520970098,0.02601908,70838.0,70819.0,0.042354]
[1773520970300,0.02601908,70838.0,70820.0,0.00156]
[1773520970806,0.001,70836.0,70821.0,0.00156]
[1773520971007,0.042347,70832.0,70821.0,0.00156]